bitfinex-derivatives/quotes_SOLF0:USTF0_20251216
["timestamp","ask_amount","ask_price","bid_price","bid_amount"]
[1765891691097,0.05291082,128.96,128.94,0.05927352]
[1765891691301,0.05366107,128.96,128.94,0.05144829]
[1765891692316,115.469,129.07,128.97,6.9796]
[1765891692616,108.5038,129.06,129.0,1.9041576]
[1765891692900,108.5271,129.03,128.91,108.6205]
[1765891693106,108.5362,129.02,128.97,1.90312948]
[1765891693407,108.5038,129.06,128.99,1.90312948]
[1765891693408,0.04983556,129.01,128.99,1.90312948]
[1765891693606,114.12016057,129.05,128.93,108.6064]
[1765891693607,108.5114,129.05,128.93,108.6064]
[1765891693809,0.05149395,129.01,128.99,1.90101935]
[1765891694106,0.05149395,129.01,128.99,0.05395943]
[1765891695704,108.59569395,129.01,128.99,0.05395943]
[1765891695909,115.57379395,129.01,128.91,6.983]
[1765891696104,115.5223,129.01,128.96,1.89942167]
[1765891696911,0.05060414,129.0,128.97,0.05106465]
[1765891698614,7.02920414,129.0,128.97,0.05106465]
[1765891698812,108.60260414,129.0,128.97,0.05106465]
[1765891699912,115.5392,128.99,128.97,0.05106465]
[1765891700113,6.9791,128.99,128.97,0.05106465]
[1765891702208,6.9799,128.97,128.87,115.6397]
[1765891702428,6.9799,128.97,128.93,1.89609971]
[1765891702610,108.5599,128.99,128.93,1.89609971]
[1765891702808,108.552,129.0,128.93,1.89609971]
[1765891703004,108.552,129.0,128.94,1.89609971]
[1765891703205,108.552,129.0,128.88,108.6485]
[1765891703516,0.0521481,128.95,128.94,1.8951983]
[1765891703721,0.04925036,128.96,128.93,0.04991398]
[1765891703918,0.04925036,128.96,128.95,1.89466224]
[1765891705321,0.04925036,128.96,128.93,0.04991398]
[1765891706419,6.9767,129.03,128.93,108.65911398]
[1765891706720,6.9767,129.03,128.99,1.89287658]
[1765891706922,6.9767,129.03,129.0,1.89287658]
[1765891707226,6.9767,129.03,128.93,108.6092]
[1765891707415,23.25,129.07,128.92,108.6147]
[1765891707416,6.9774,129.02,128.99,1.89118067]
[1765891707615,7.03334552,129.02,128.99,1.94660647]
[1765891707827,7.03334552,129.02,128.99,0.0554258]
[1765891708323,0.05594552,129.02,128.99,0.0554258]
[1765891710324,0.05594552,129.02,129.0,1.88979015]
[1765891710527,0.05594552,129.02,129.01,1.88979015]
[1765891710833,0.05594552,129.02,128.99,0.0554258]
[1765891712139,6.9731,129.1,128.99,108.6138258]
[1765891712341,6.9731,129.1,129.03,1.8870693]
[1765891712535,22.79326492,129.13,129.05,1.8870693]
[1765891712741,114.0081677,129.14,129.01,108.5373]
[1765891712742,108.4382,129.14,129.06,1.8870693]
[1765891712931,108.4382,129.14,129.07,1.8870693]
[1765891713132,0.05391918,129.12,129.09,0.04900767]
[1765891713334,0.05144277,129.12,129.09,0.04900767]
[1765891714040,0.05144277,129.12,129.1,1.88318975]
[1765891714741,0.05144277,129.12,129.09,0.04900767]
[1765891715836,6.9727,129.11,129.09,0.04900767]
[1765891716036,115.4324,129.11,129.01,6.9776]
[1765891716237,115.4324,129.11,129.06,1.88154883]
[1765891716438,115.4324,129.11,129.05,1.88154883]
[1765891716938,0.05802549,129.09,129.07,0.05710112]
[1765891717447,0.05802549,129.09,128.94,108.5947]
[1765891717651,108.5027,129.06,129.01,1.88354014]
[1765891717938,108.5027,129.06,128.94,108.5986]
[1765891718128,108.4914,129.08,129.01,1.88455732]
[1765891718328,108.4914,129.08,129.02,1.88455732]
[1765891718531,108.4914,129.08,128.96,108.5837]
[1765891718532,108.4914,129.08,129.04,0.05592483]
[1765891718849,108.5127,129.05,128.9,108.6289]
[1765891719048,108.5268,129.03,128.99,1.88562477]
[1765891719240,115.5145,129.02,128.98,1.88562477]
[1765891719542,115.5145,129.02,128.91,6.983]
[1765891719750,0.05450842,128.98,128.97,1.88818572]
[1765891719934,0.05937414,128.99,128.97,1.88818572]
[1765891720739,0.05937414,128.99,128.98,1.88818572]
[1765891721143,0.05937414,128.99,128.96,0.02918713]
[1765891721551,115.4786,129.06,128.96,1.58918713]
[1765891721844,115.4786,129.06,129.01,1.88971264]
[1765891722065,115.4647,129.08,129.01,1.88971264]
[1765891722238,115.4647,129.08,129.02,1.88971264]
[1765891722636,0.05848767,129.06,129.04,0.05191824]
[1765891722836,0.05627815,129.06,129.04,0.0567225]
[1765891724541,6.9775,129.02,128.91,115.6052]
[1765891724846,6.9775,129.02,128.97,1.89671157]
[1765891725234,115.5247,129.01,128.97,1.89671157]
[1765891725434,108.5539,129.0,128.98,0.03183877]
[1765891725747,108.6046466,129.0,128.98,0.03183877]
[1765891726345,108.5627,128.99,128.86,115.6493]
[1765891726547,108.5627,128.99,128.95,1.89744027]
[1765891726548,108.5703,128.98,128.95,1.89744027]
[1765891726747,108.5703,128.98,128.86,115.6493]
[1765891726943,108.5703,128.98,128.94,1.8982583]
[1765891727143,6.9795,128.98,128.94,1.8982583]
[1765891727348,0.05574444,128.97,128.94,1.8982583]
[1765891727546,0.05574444,128.97,128.93,1.8982583]
[1765891727739,0.05230185,128.96,128.93,1.8982583]
[1765891728144,0.05230185,128.96,128.86,6.9858]
[1765891728145,0.05230185,128.96,128.92,1.8982583]
[1765891728344,0.05616099,128.95,128.92,1.8982583]
[1765891728744,108.545,129.01,128.92,1.95441929]
[1765891728949,108.5627,128.99,128.94,1.8982583]
[1765891729348,115.5415,128.99,128.94,1.8982583]
[1765891729550,108.5725,128.98,128.94,1.8982583]
[1765891729750,0.05382196,128.97,128.95,0.053886]
[1765891737358,108.63252196,128.97,128.86,6.9858]
[1765891737657,108.63252196,128.97,128.93,1.90504239]
[1765891737658,108.5787,128.97,128.93,1.90504239]
[1765891738360,0.05571357,128.96,128.93,1.90504239]
[1765891738860,0.05571357,128.96,128.92,1.90504239]
[1765891739064,0.04966027,128.95,128.86,115.6523]
[1765891739267,6.9802,128.97,128.92,1.9046234]
[1765891739454,6.9809,128.95,128.91,1.9046234]
[1765891739658,6.9809,128.95,128.9,1.90555126]
[1765891739659,0.05101304,128.94,128.9,1.90555126]
[1765891739858,0.05137112,128.93,128.91,1.90555126]
[1765891740077,7.03201302,128.93,128.82,115.6849]
[1765891740270,0.0577784,128.89,128.82,115.6849]
[1765891742353,0.0577784,128.89,128.83,108.6915]
[1765891743266,0.0577784,128.89,128.84,115.6711]
[1765891743770,6.981,128.95,128.85,108.72805312]
[1765891744067,6.981,128.95,128.85,108.6762]
[1765891744574,6.981,128.95,128.85,115.6622]
[1765891744886,0.05474434,128.91,128.89,0.05699942]
[1765891753280,0.00474434,128.91,128.89,0.05699942]
[1765891753678,6.9795,128.98,128.89,8.60089942]
[1765891753870,6.9795,128.98,128.89,6.9839]
[1765891754179,115.5585,128.97,128.87,6.9852]
[1765891754387,6.9802,128.97,128.87,108.6587]
[1765891754574,108.5514,129.0,128.88,108.6501]
[1765891754770,0.05812922,128.95,128.93,0.05113963]
[1765891754972,0.05092814,128.95,128.93,0.05113963]
[1765891756067,108.5456,129.01,128.93,0.05113963]
[1765891756265,108.5456,129.01,128.9,108.6309]
[1765891757166,0.04883561,128.97,128.94,0.05788014]
[1765891764772,108.4907,129.08,128.94,0.05788014]
[1765891764976,201.5501,129.1,128.98,108.5669]
[1765891765176,108.4477,129.13,129.0,108.5473]
[1765891765388,108.4513,129.12,129.01,108.54]
[1765891765582,115.3955,129.15,129.04,108.5129]
[1765891765779,108.4119,129.17,129.05,108.5064]
[1765891765979,0.05076013,129.11,129.08,0.05350467]
[1765891766185,108.3925,129.19,129.08,0.05613386]
[1765891766389,108.3941,129.19,129.07,108.492]
[1765891766578,108.3955,129.19,129.07,108.4874]
[1765891766881,108.3873,129.2,129.08,108.4777]
[1765891767286,0.05339883,129.15,129.13,0.05378881]
[1765891767480,0.05194727,129.15,129.13,0.05076639]
[1765891767681,108.3687,129.22,129.13,0.05076639]
[1765891767884,108.3728,129.22,129.1,108.4637]
[1765891768097,108.3728,129.22,129.09,115.4444]
[1765891768098,108.3813,129.21,129.09,115.4444]
[1765891768280,108.39,129.2,129.08,108.4784]
[1765891768685,0.05072332,129.15,129.13,0.05110891]
[1765891768883,0.05717498,129.15,129.13,0.05110891]
[1765891769987,108.3532,129.24,129.13,0.05110891]
[1765891770204,108.3356,129.26,129.14,108.4288]
[1765891770477,108.3356,129.26,129.13,108.4382]
[1765891770684,108.3574,129.24,129.11,108.4554]
[1765891770892,108.3438,129.25,129.12,108.4463]
[1765891771092,0.05422232,129.2,129.17,0.05125586]
[1765891771294,0.05422232,129.2,129.17,0.05698508]
[1765891772392,1.59422232,129.2,129.09,108.4706]
[1765891772693,108.3588,129.23,129.1,108.4642]
[1765891772893,108.3457,129.25,129.13,108.4382]
[1765891773090,108.3311,129.27,129.14,108.4308]
[1765891773285,0.05402582,129.22,129.19,0.05404862]
[1765891773490,0.05402582,129.22,129.19,0.05407649]
[1765891776391,1.59402582,129.22,128.98,6.9793]
[1765891776696,22.91250869,129.29,128.93,108.6051]
[1765891776998,6.9657,129.24,128.91,108.6204]
[1765891777195,6.9657,129.24,128.89,108.6409]
[1765891777396,0.05217067,129.08,129.05,0.0574024]
[1765891777598,6.9657,129.24,128.98,6.9792]
[1765891778600,6.9673,129.21,128.98,6.9792]
[1765891778791,0.05330573,129.11,129.08,0.05617133]
[1765891778993,0.05684032,129.11,129.08,0.05803754]
[1765891780293,6.9647,129.26,129.08,1.59803754]
[1765891780494,6.9647,129.26,129.01,6.9772]
[1765891781399,0.0543458,129.15,129.12,0.05331829]
[1765891781594,0.05301392,129.15,129.12,0.04989437]
[1765891786404,1.59301392,129.15,128.97,6.9796]
[1765891786599,6.9677,129.2,128.97,6.9796]
[1765891787408,0.05370996,129.1,129.07,0.04889255]
[1765891787706,0.05443205,129.1,129.07,0.05418582]
[1765891789500,6.9673,129.21,129.07,0.05418582]
[1765891789701,6.9673,129.21,129.0,6.9781]
[1765891790511,0.05688474,129.12,129.09,0.05750534]
[1765891790711,0.05617666,129.12,129.09,0.05338768]
[1765891798022,1.59617666,129.12,128.95,6.9806]
[1765891798334,6.9714,129.13,128.91,6.9827]
[1765891798615,6.9714,129.13,128.91,182.9827]
[1765891799004,0.05899451,129.03,129.01,0.05178349]
[1765891799208,0.05866841,129.03,129.01,0.05057348]
[1765891801014,175.0,129.18,129.01,0.05057348]
[1765891801209,6.9683,129.19,128.91,108.6249]
[1765891801411,62.30018422,129.45,129.12,6.9713]
[1765891801627,1.228e-05,129.5,129.2,108.3747]
[1765891801925,107.976,129.69,129.34,6.9595]
[1765891802109,23.27,129.67,129.38,108.2252]
[1765891802416,0.00105261,129.53,129.51,6.9508]
[1765891802622,107.9196,129.76,129.5,0.05111701]
[1765891802811,3.54124777,129.83,129.44,108.1764]
[1765891803016,3.54124777,129.83,129.5,108.1313]
[1765891803225,3.54124777,129.83,129.46,108.1606]
[1765891803420,3.54124777,129.83,129.49,108.1377]
[1765891803617,107.9326,129.74,129.34,108.2635]
[1765891803818,0.05132773,129.67,129.37,108.237]
[1765891804121,124.0,129.73,129.35,108.2551]
[1765891804329,124.0,129.73,129.32,108.2776]
[1765891804529,108.0171,129.64,129.26,6.9638]
[1765891804826,6.9443,129.64,129.27,108.3176]
[1765891805024,6.9443,129.64,129.24,108.3466]
[1765891805221,0.05260271,129.46,129.16,108.4096]
[1765891805421,115.0307,129.56,129.14,108.4266]
[1765891805615,108.032,129.62,129.16,108.4094]
[1765891805817,6.9454,129.61,129.19,108.3865]
[1765891806014,108.0542,129.6,129.18,108.3984]
[1765891806213,108.0123,129.65,129.24,108.3477]
[1765891806524,0.00063758,129.4,129.38,0.05113496]
[1765891806827,107.9587,129.71,129.28,108.3104]
[1765891807017,107.9576,129.71,129.28,108.3104]
[1765891807220,107.9578,129.71,129.34,6.9595]
[1765891807418,124.0,129.73,129.34,108.2628]
[1765891807617,107.8883,129.8,129.36,108.2489]
[1765891807813,3.54124777,129.83,129.43,6.9549]
[1765891808017,124.0,129.82,129.46,108.1611]
[1765891808225,107.908,129.77,129.35,108.2519]
[1765891808442,107.9335,129.74,129.31,108.2864]
[1765891808633,107.9431,129.73,129.3,108.295]
[1765891808835,0.05502626,129.53,129.5,0.05252799]
[1765891809122,124.0,129.74,129.51,1.54]
[1765891809326,107.9179,129.76,129.34,108.2588]
[1765891809526,6.9401,129.71,129.34,108.2652]
[1765891809728,6.9401,129.71,129.36,108.2463]
[1765891809918,6.9401,129.71,129.38,6.9575]
[1765891810120,6.9401,129.71,129.31,108.2849]
[1765891810121,0.05824369,129.56,129.53,0.05249701]
[1765891810322,111.40254777,129.83,129.53,0.05037776]
[1765891810531,111.40254777,129.83,129.44,6.9541]
[1765891810532,1.34298119,129.72,129.44,6.9541]
[1765891810725,6.9343,129.82,129.47,108.1569]
[1765891811035,3.54124777,129.83,129.52,108.1118]
[1765891811230,3.54124777,129.83,129.45,62.0]
[1765891811537,0.05349068,129.65,129.63,0.05184313]
[1765891811734,6.9369,129.77,129.45,6.954]
[1765891811932,1.34261849,129.7,129.45,6.954]
[1765891812129,1.34261849,129.7,129.39,6.9568]
[1765891812321,231.8715,129.82,129.39,108.2224]
[1765891812518,107.9845,129.68,129.25,108.3343]
[1765891812720,323.7454,129.77,129.25,108.3343]
[1765891812721,107.9766,129.69,129.28,6.963]
[1765891812930,0.05555251,129.5,129.47,0.05644663]
[1765891813228,107.9021,129.78,129.37,6.9578]
[1765891813428,107.9574,129.71,129.36,22.89916105]
[1765891813627,107.9574,129.71,129.24,108.3435]
[1765891813628,108.0268,129.63,129.2,108.3784]
[1765891813929,108.0268,129.63,129.23,6.9657]
[1765891813930,6.9464,129.6,129.23,6.9657]
[1765891814129,107.9629,129.71,129.4,0.05899701]
[1765891814338,107.9665,129.7,129.31,6.9611]
[1765891814539,6.9432,129.66,129.31,6.9611]
[1765891814725,107.9321,129.74,129.35,6.959]
[1765891814926,6.9402,129.71,129.32,108.2788]
[1765891815125,0.0006932,129.53,129.5,0.05487807]
[1765891815323,107.8835,129.8,129.39,6.9568]
[1765891815523,1.34311077,129.72,129.39,154.2268]
[1765891815733,26.81265717,129.83,129.48,30.2222]
[1765891815934,1.34241133,129.78,129.39,232.2189]
[1765891816134,6.9369,129.77,129.39,124.0]
[1765891816333,1.34241133,129.78,129.57,0.05485731]
[1765891816535,1.34241133,129.78,129.43,6.9548]
[1765891816841,1.34241133,129.78,129.39,108.2232]
[1765891817144,6.9371,129.77,129.36,108.2483]
[1765891817446,0.00156191,129.58,129.55,0.05044146]
[1765891817627,26.81265717,129.83,129.46,108.1642]
[1765891817832,1.34243722,129.8,129.56,62.0]
[1765891818130,26.81265717,129.83,129.56,62.0]
[1765891818329,1.34191956,129.82,129.56,62.0]
[1765891818529,0.05002909,129.7,129.68,0.00439851]
[1765891818734,125.34191956,129.82,129.47,6.9526]
[1765891818938,6.9348,129.81,129.42,6.9553]
[1765891819138,1.34191956,129.82,129.49,108.1398]
[1765891819334,1.34191956,129.82,129.51,108.1182]
[1765891819535,3.54124777,129.83,129.45,131.4405]
[1765891819735,1.34179021,129.82,129.65,0.05500312]
[1765891819941,3.54124777,129.83,129.51,108.1229]
[1765891820235,3.54124777,129.83,129.53,108.1068]
[1765891820435,3.54124777,129.83,129.54,108.0934]
[1765891820641,3.54124777,129.83,129.59,131.3233]
[1765891820938,3.54124777,129.83,129.7,0.05596263]
[1765891821133,3.54124777,129.83,129.75,0.05263469]
[1765891821340,92.9,129.98,129.65,6.943]
[1765891821341,23.38054984,129.98,129.78,0.05627089]
[1765891821536,107.6591,130.07,129.87,0.05539843]
[1765891821738,1.34011091,130.0,129.7,62.0]
[1765891821934,124.0,130.0,129.7,62.0]
[1765891822130,6.927,129.96,129.7,62.0]
[1765891822328,1.34029155,129.93,129.56,108.079]
[1765891822532,6.927,129.96,129.64,6.9438]
[1765891822842,0.04876449,129.81,129.79,0.05083285]
[1765891823053,0.05522513,129.81,129.59,6.9461]
[1765891823240,107.6765,130.05,129.63,108.021]
[1765891823539,107.6995,130.02,129.67,6.9418]
[1765891823743,107.676,130.05,129.67,6.9418]
[1765891823744,124.0,130.01,129.67,6.9418]
[1765891823944,0.0544148,129.85,129.83,0.05434629]
[1765891824132,107.6855,130.04,129.83,0.05625707]
[1765891824133,107.6949,130.03,129.83,0.05625707]
[1765891824327,107.7016,130.02,129.61,23.70715955]
[1765891824531,107.7016,130.02,129.6,108.0458]
[1765891824532,107.6999,130.02,129.6,108.0479]
[1765891824744,124.0,130.01,129.65,6.9431]
[1765891824929,231.7117,130.01,129.65,6.9431]
[1765891825238,231.7117,130.01,129.61,62.0]
[1765891825239,0.0493056,129.84,129.61,62.0]
[1765891825439,107.7948,129.91,129.49,108.135]
[1765891825638,107.7948,129.91,129.48,108.1446]
[1765891825639,6.9318,129.87,129.48,108.1485]
[1765891825944,6.9318,129.87,129.55,6.9483]
[1765891826243,6.9318,129.87,129.7,0.04951596]
[1765891826440,0.05743399,129.8,129.5,6.951]
[1765891826641,107.7548,129.96,129.53,108.1023]
[1765891826843,107.7602,129.95,129.53,108.1046]
[1765891827035,6.9305,129.89,129.57,6.9474]
[1765891827242,124.0,129.89,129.57,6.9474]
[1765891827550,0.0503213,129.74,129.46,22.97620886]
[1765891827744,0.0503213,129.74,129.41,108.2051]
[1765891827745,107.8683,129.82,129.41,108.206]
[1765891828046,6.937,129.77,129.46,6.9534]
[1765891828444,6.937,129.77,129.47,62.0]
[1765891828644,107.8706,129.82,129.48,6.9524]
[1765891828832,107.8706,129.82,129.42,23.7247026]
[1765891828833,107.8748,129.81,129.42,23.7247026]
[1765891829147,6.9386,129.74,129.43,6.9548]
[1765891829342,107.9246,129.75,129.32,108.276]
[1765891829539,6.9428,129.66,129.29,108.3024]
[1765891829738,6.9428,129.66,129.3,159.3758]
[1765891830046,0.05023153,129.49,129.47,0.05771702]
[1765891830237,6.945,129.62,129.12,108.4437]
[1765891830238,108.0918,129.55,129.12,108.4437]
[1765891830441,108.0906,129.55,129.13,108.4377]
[1765891830641,6.9515,129.5,129.18,6.9682]
[1765891830842,6.9515,129.5,129.09,108.4685]
[1765891830843,108.135,129.5,129.07,108.4874]
[1765891831046,108.175,129.45,129.08,23.30182832]
[1765891831242,0.05555969,129.28,129.25,0.0538136]
[1765891831443,6.9559,129.42,129.04,1.34311077]
[1765891831653,6.9582,129.38,129.04,1.34311077]
[1765891831945,0.05681342,129.24,129.22,0.00446017]
[1765891832338,6.9578,129.38,129.04,1.34311077]
[1765891832739,6.9578,129.38,129.2,0.05111625]
[1765891832945,0.05777876,129.3,129.05,6.9755]
[1765891833134,6.9578,129.38,129.05,6.9755]
[1765891833333,108.3195,129.28,129.11,108.454]
[1765891833540,108.3029,129.3,129.15,108.4212]
[1765891833745,108.3107,129.29,129.15,108.4214]
[1765891833937,108.3025,129.3,129.21,0.05156482]
[1765891834240,0.05662669,129.27,129.24,0.0501904]
[1765891834549,0.05606154,129.27,129.24,0.0001904]
[1765891835149,0.05606154,129.27,129.15,108.4204]
[1765891835342,108.3053,129.3,129.16,108.4117]
[1765891835647,108.3471,129.25,129.11,108.4545]
[1765891835847,108.3367,129.26,129.12,108.4476]
[1765891836038,0.05057906,129.2,129.18,0.05771118]
[1765891836236,0.05157704,129.2,129.18,0.05208518]
[1765891836739,0.05157704,129.2,129.03,6.9762]
[1765891836740,108.4192,129.16,129.04,1.34311077]
[1765891837049,108.4192,129.16,128.99,108.5539]
[1765891837050,108.4369,129.14,128.99,108.5539]
[1765891837249,108.4364,129.14,128.99,108.5539]
[1765891837545,108.4192,129.16,128.94,434.3904]
[1765891837546,108.4779,129.09,128.94,108.5978]
[1765891837746,0.05248735,129.03,129.0,0.0523016]
[1765891837945,0.05059475,129.03,129.0,0.05775335]
[1765891838134,0.05059475,129.03,128.89,108.6367]
[1765891838335,108.5286,129.03,128.93,1.34899407]
[1765891838535,108.5286,129.03,128.88,108.6492]
[1765891838753,108.5369,129.02,128.88,109.99884337]
[1765891838943,108.5645,128.99,128.88,1.34954337]
[1765891839149,0.04984291,128.95,128.92,0.05817728]
[1765891839344,108.6322,128.91,128.76,108.7477]
[1765891839651,108.7137,128.81,128.67,108.8277]
[1765891839851,108.7013,128.83,128.62,102.0876]
[1765891839852,108.7576,128.76,128.62,102.0876]
[1765891840048,108.7898,128.72,128.58,108.8985]
[1765891840246,1.35,128.75,128.61,108.8735]
[1765891840539,1.35,128.75,128.64,108.8514]
[1765891840737,0.05000332,128.66,128.58,108.9032]
[1765891840938,0.05000332,128.66,128.57,108.908]
[1765891841158,108.8467,128.65,128.52,108.9556]
[1765891841448,108.9173,128.57,128.43,109.029]
[1765891841651,108.8842,128.61,128.47,108.9926]
[1765891841946,108.94555485,128.6,128.46,109.0016]
[1765891842147,108.8528,128.65,128.51,108.957]
[1765891842335,0.05442473,128.54,128.46,109.0045]
[1765891842541,0.05442473,128.54,128.51,108.9619]
[1765891842738,108.8268,128.68,128.54,108.9386]
[1765891842937,108.7903,128.72,128.57,108.9104]
[1765891843145,110.1196,128.75,128.6,108.8815]
[1765891843342,110.1196,128.75,128.6,108.8832]
[1765891843551,108.8106,128.7,128.56,108.9194]
[1765891843753,173.7821,128.71,128.59,108.8961]
[1765891843943,1.35,128.75,128.63,108.8597]
[1765891844251,0.05866824,128.7,128.68,0.00232986]
[1765891844453,1.35,128.75,128.68,108.816]
[1765891844656,108.7774,128.74,128.54,326.799]
[1765891844856,1.35,128.75,128.64,108.8484]
[1765891845058,1.35,128.75,128.63,326.5864]
[1765891845346,108.6327,128.91,128.68,62.0]
[1765891845549,108.6549,128.88,128.72,108.784]
[1765891845750,0.05574074,128.81,128.78,0.05475245]
[1765891845953,0.05492911,128.81,128.78,0.05424712]
[1765891846149,108.6553,128.88,128.78,1.61424712]
[1765891846447,108.6716,128.86,128.71,108.7895]
[1765891846752,108.6322,128.91,128.75,108.7535]
[1765891846939,108.6808,128.85,128.7,108.7968]
[1765891847147,0.05581373,128.79,128.76,0.05185665]
[1765891847343,0.05187028,128.79,128.76,0.0534277]
[1765891847545,108.78267028,128.79,128.64,173.7888]
[1765891847850,108.7308,128.79,128.67,1.35187631]
[1765891848050,108.7486,128.77,128.67,1.35187631]
[1765891848249,108.7415,128.78,128.63,108.8602]
[1765891848554,108.6902,128.84,128.7,108.8013]
[1765891848857,108.6716,128.86,128.72,108.7831]
[1765891849052,108.6638,128.87,128.73,108.7747]
[1765891849254,108.6638,128.87,128.73,108.776]
[1765891849551,108.6546,128.88,128.74,108.767]
[1765891849753,0.05882079,128.81,128.79,0.05640803]
[1765891849955,0.04944277,128.81,128.79,0.05301054]
[1765891850147,0.04944277,128.81,128.79,0.00301054]
[1765891850352,0.04944277,128.81,128.73,108.7759]
[1765891850552,110.00686771,128.88,128.73,108.7759]
[1765891850553,108.6557,128.88,128.74,108.7646]
[1765891850750,108.6154,128.93,128.8,108.7157]
[1765891850948,108.6154,128.93,128.8,108.7167]
[1765891851151,108.6736,128.86,128.73,108.7712]
[1765891851345,108.6638,128.87,128.74,108.7654]
[1765891851543,108.6581,128.88,128.71,108.792]
[1765891851747,108.6736,128.86,128.73,108.7745]
[1765891851947,108.6559,128.88,128.75,108.7574]
[1765891852147,108.655,128.88,128.75,108.7574]
[1765891852352,0.04911828,128.83,128.78,108.7334]
[1765891852552,0.00275788,128.82,128.78,108.7334]
[1765891852747,108.6298,128.91,128.78,108.7334]
[1765891853058,108.6051,128.94,128.81,108.708]
[1765891853254,108.5965,128.95,128.81,108.708]
[1765891853255,108.5973,128.95,128.82,108.6999]
[1765891853451,108.5964,128.95,128.82,108.6999]
[1765891853654,0.05410429,128.9,128.87,0.05903874]
[1765891853859,0.05981226,128.9,128.87,0.05658008]
[1765891855952,0.05981226,128.9,128.82,108.7023]
[1765891855953,108.6648,128.87,128.75,108.759]
[1765891856263,108.6564,128.88,128.76,108.7496]
[1765891856460,108.6572,128.88,128.75,108.7586]
[1765891856655,108.6632,128.87,128.75,108.7586]
[1765891856846,108.6572,128.88,128.73,108.7755]
[1765891856847,0.05401334,128.82,128.73,108.7755]
[1765891857052,0.05690563,128.79,128.71,173.8088]
[1765891857361,0.05720856,128.76,128.71,65.02]
[1765891857556,0.05720856,128.76,128.68,110.16881525]
[1765891857762,108.6743,128.86,128.71,108.7925]
[1765891858055,108.7052,128.82,128.7,108.8014]
[1765891858263,108.7298,128.79,128.68,1.35111525]
[1765891858465,108.7777,128.74,128.62,108.8653]
[1765891858761,0.05512331,128.69,128.67,0.05313199]
[1765891858950,108.8687582,128.69,128.62,1.35232285]
[1765891859150,108.8159,128.69,128.57,108.9095]
[1765891859350,65.08,128.7,128.59,108.8923]
[1765891859555,108.75,128.77,128.65,108.8435]
[1765891859863,108.756,128.76,128.64,108.8509]
[1765891860067,0.05729911,128.71,128.61,108.8763]
[1765891860260,0.05075483,128.67,128.64,108.8511]
[1765891860458,108.7073,128.82,128.69,108.8096]
[1765891860763,108.6986,128.83,128.71,108.7929]
[1765891860965,108.6969,128.83,128.71,108.7929]
[1765891861176,108.6715,128.86,128.74,108.7636]
[1765891861356,0.05134652,128.81,128.79,0.05738039]
[1765891861555,108.6642,128.87,128.79,0.05738039]
[1765891861758,108.6642,128.87,128.82,0.04985536]
[1765891862055,108.649,128.89,128.77,108.7407]
[1765891862260,108.6472,128.89,128.77,108.7407]
[1765891862471,108.6599,128.88,128.76,108.7486]
[1765891862661,108.6165,128.93,128.8,108.7163]
[1765891862969,0.04959835,128.88,128.8,108.7144]
[1765891863154,65.1,128.95,128.84,108.6823]
[1765891863354,108.5649,128.99,128.87,108.6573]
[1765891863554,108.5544,129.0,128.88,108.6488]
[1765891863862,108.5788,128.97,128.86,65.06]
[1765891864054,108.5883,128.96,128.86,65.06]
[1765891864258,1.34980509,129.0,128.86,65.06]
[1765891864259,0.0556469,128.92,128.9,0.05677263]
[1765891864454,0.05120495,128.92,128.9,0.05053008]
[1765891864874,0.05120495,128.92,128.9,0.00053008]
[1765891865081,0.05120495,128.92,128.8,108.7131]
[1765891865082,1.61120495,128.92,128.81,108.7084]
[1765891865376,108.6077,128.94,128.83,108.6916]
[1765891865667,108.5958,128.95,128.84,108.6833]
[1765891865863,108.5958,128.95,128.83,108.6901]
[1765891866065,0.05663215,128.9,128.81,108.708]
[1765891866258,0.05687413,128.87,128.8,108.7182]
[1765891866461,0.05687413,128.87,128.79,65.06]
[1765891866771,0.05450019,128.84,128.75,108.7585]
[1765891866970,0.05941698,128.81,128.73,108.7754]
[1765891867162,0.05786931,128.78,128.72,65.06]